{"text_format":"1","workbook":"xlsx","n_sheets":7,"sheets":["Despesas","C. CUSTO","EMPR","REL_FOR","CONTRATOS","PEDIDO","TABELA"],"not_rendered":{"charts":0,"images":1,"macros":1,"external_links":0,"defined_names":6,"comments":1,"pivot_tables":0},"unopened":[],"bounds":{"document_bytes":16777216,"sheet_cells":100000,"rows_first":2000,"rows_last":500,"rows_between":2000,"halvings":0,"cell_chars":16384,"cell_head_chars":4096},"cells_cut":0,"cells_raw":0,"read":"whole","date_system":"1900"}

{"sheet":"Despesas","index":0,"n_rows":48,"n_cols":5,"rows_kept":48,"cut":false,"hidden":false,"merged":[]}
[]
[null,"Tipo de Despesa","conta","Descrição da conta","Cod. Despesas"]
[null,"Gastos Com Pessoal",100101,"Salários",10001]
[null,"Gastos Com Pessoal",100102,"Horas Extras",10001]
[null,"Gastos Com Pessoal",100103,"Férias",10001]
[null,"Gastos Com Pessoal",100104,"Gratificações",10001]
[null,"Gastos Com Pessoal",100105,"Encargos sob Salário",10001]
[null,"Gastos Com Pessoal",100106,"Encargos de Férias",10001]
[null,"Gastos Com Pessoal",100107,"Assistencia Médica - Empresa",10001]
[null,"Gastos Com Pessoal",100108,"Assistencia Médica - Integrante",10001]
[null,"Gastos Com Pessoal",100109,"Vale Transporte",10001]
[null,"Gastos Com Pessoal",100110,"Vale Card",10001]
[null,"Gastos Com Pessoal",100111,"Treinamentos e Cusros",10001]
[]
[null,"Material Diversos",100201,"Material de Segurança",10002]
[null,"Material Diversos",100202,"Mat. Limpeza e Conservação",10002]
[null,"Material Diversos",100203,"Mat. De Escritório",10002]
[null,"Material Diversos",100204,"Mat. De Manutenção de Veiculo",10002]
[null,"Material Diversos",100205,"Mat. De Manutenção de equipamentos",10002]
[null,"Material Diversos",100206,"Bens de Pequena duração",10002]
[null,"Material Diversos",100207,"Mat. Diversos",10002]
[null,"Material Diversos",100208,"Combustivel e Lubrificantes",10002]
[null,"Material Diversos",100209,"Material para Jardinagem",10002]
[null,"Material Diversos",100210,"Material para Roçagem",10002]
[null,"Material Diversos",100211,"Material de Higiene e Limpeza",10002]
[null,"Material Diversos",100212,"Bens de Uso Controlado",10002]
[null,"Material Diversos",100213,"Mat. De Pintura",10002]
[null,"Material Diversos",100214,"Mudas Nativas",10002]
[null,"Material Diversos",100215,"Mat. Elétrico",10002]
[]
[null,"Serviços Prestados por terceiros",100301,"Serv. de Consultoria e Assessoria",10003]
[null,"Serviços Prestados por terceiros",100302,"Serv. de Manutenção de Veiculo",10003]
[null,"Serviços Prestados por terceiros",100303,"Serv. de Manutenção de Equipamentos",10003]
[null,"Serviços Prestados por terceiros",100304,"Serv. Informática",10003]
[null,"Serviços Prestados por terceiros",100305,"Serv. Manutenção civil de Area",10003]
[null,"Serviços Prestados por terceiros",100306,"Serv. Transporte de Pessoal",10003]
[null,"Serviços Prestados por terceiros",100307,"Transporte de Materiais",10003]
[null,"Serviços Prestados por terceiros",100308,"Locação de Veiculos",10003]
[null,"Serviços Prestados por terceiros",100309,"Locação de Maquinas e Equipamentos",10003]
[null,"Serviços Prestados por terceiros",100310,"Locação de Conteiners",10003]
[null,"Serviços Prestados por terceiros",100311,"Outros Serviços",10003]
[]
[null,"Despesas Gerais",100401,"Energia Eletrica",10004]
[null,"Despesas Gerais",100402,"Agua e Esgoto",10004]
[null,"Despesas Gerais",100403,"Correios",10004]
[null,"Despesas Gerais",100404,"Combustivel e Lubrificantes (Administrativo)",10004]
[null,"Despesas Gerais",100405,"Seguros Diversos",10004]
[null,"Despesas Gerais",100406,"Hospedágem",10004]

{"sheet":"C. CUSTO","index":1,"n_rows":21,"n_cols":7,"rows_kept":21,"cut":false,"hidden":false,"merged":[]}
[]
[null,"Cod. Ref","ABREV_C. CUSTO","RAIZ C. CUSTO","TIPO DE TOMADOR","C. CUSTO","DESC. CENTRO DE CUSTO"]
[null,null,null,null,null,1000000,"ADMINISTRAÇÃO"]
[null,null,null,null,null,1010000,"DIRETORIA"]
[null,1,1010,"NÚCLEO DE APOIO A DIRETORIA","DIRETORIA ADMINISTRATIVA FINANCEIRA",1010000,"DIRETORIA ADMINISTRATIVA FINANCEIRA"]
[null,2,1011,"NÚCLEO DE APOIO A DIRETORIA","DIRETORIA ADMINISTRATIVA FINANCEIRA",1011000,"NÚCLEO DE APOIO A DIRETORIA"]
[null,3,1011,"NÚCLEO DE APOIO A DIRETORIA","DIRETORIA ADMINISTRATIVA FINANCEIRA",1011100,"APOIO A DIRETORIA ADMINISTRATIVA FINANCEIRA"]
[null,4,1011,"NÚCLEO DE APOIO A DIRETORIA","DIRETORIA ADMINISTRATIVA FINANCEIRA",1011101,"ADMINISTRAÇÃO DE PESSOAL"]
[null,5,1011,"NÚCLEO DE APOIO A DIRETORIA","DIRETORIA ADMINISTRATIVA FINANCEIRA",1011102,"SERVIÇOS ADMINISTRATIVOS"]
[null,null,null,null,null,1012000,"NUCLEO DE ADMINISTRAÇÃO"]
[null,6,1012,"NUCLEO DE ADMINISTRAÇÃO FINANCEIRA","NUCLEO DE ADMINISTRAÇÃO FINANCEIRA",1012000,"NUCLEO DE ADMINISTRAÇÃO FINANCEIRA"]
[null,7,1012,"NUCLEO DE ADMINISTRAÇÃO FINANCEIRA","NUCLEO DE ADMINISTRAÇÃO FINANCEIRA",1012100,"APOIO A ADMINISTRAÇÃO FINANCEIRA"]
[null,8,1012,"NUCLEO DE ADMINISTRAÇÃO FINANCEIRA","NUCLEO DE ADMINISTRAÇÃO FINANCEIRA",1012101,"ADMINISTRAÇÃO DE CONTRATOS"]
[null,9,1012,"NUCLEO DE ADMINISTRAÇÃO FINANCEIRA","NUCLEO DE ADMINISTRAÇÃO FINANCEIRA",1012102,"SERVIÇOS ADMINISTRATIVOS"]
[null,10,1012,"NUCLEO DE ADMINISTRAÇÃO FINANCEIRA","NUCLEO DE ADMINISTRAÇÃO FINANCEIRA",1012103,"ADMINISTRAÇÃO DE PESSOAL"]
[null,11,1012,"NUCLEO DE ADMINISTRAÇÃO FINANCEIRA","NUCLEO DE ADMINISTRAÇÃO FINANCEIRA",1012104,"TESOURARIA"]
[null,12,1012,"NUCLEO DE ADMINISTRAÇÃO FINANCEIRA","NUCLEO DE ADMINISTRAÇÃO FINANCEIRA",1012105,"PLANEJAMENTO E CUSTOS"]
[null,13,1012,"NUCLEO DE ADMINISTRAÇÃO FINANCEIRA","NUCLEO DE ADMINISTRAÇÃO FINANCEIRA",1012106,"SSMA (SAÚDE, SEGURANÇA e MEIO AMBIENTE)"]
[null,14,1012,"NUCLEO DE ADMINISTRAÇÃO FINANCEIRA","NUCLEO DE ADMINISTRAÇÃO FINANCEIRA",1012107,"COMPRAS"]
[null,15,1012,"NUCLEO DE ADMINISTRAÇÃO FINANCEIRA","NUCLEO DE ADMINISTRAÇÃO FINANCEIRA",1012108,"ATIVO IMOBILIZADO"]
[null,null,null,null,null,4000000,"OPERAÇÃO "]

{"sheet":"EMPR","index":2,"n_rows":4,"n_cols":3,"rows_kept":4,"cut":false,"hidden":true,"merged":[]}
[]
[null,"Cod. Empresa","Descrição da Empresa"]
[null,1,"SAMMA SERVIÇOS  E TRANSPORTES "]
[null,2,"TRESS SERVIÇOS"]

{"sheet":"REL_FOR","index":3,"n_rows":4,"n_cols":8,"rows_kept":4,"cut":false,"hidden":false,"merged":[]}
[null,"COD. FORN","NOME FANTASIA","RAZÃO SOCIAL","CNPJ","CIDADE","ESTADO","COD. FORN"]
[null,1,"FULANO","AGROMEC MAQUINAS IMPLEMENTOS AGRICOLAS LTDA","11.222.333/0001/00","CATALÃO","GO",1]
[null,2,"BELTRANO","MARIA REGINA PEDRO ESTEVAM","11.222.333/0001/00","CATALÃO","GO",2]
[null,3,"CICLANO",null,null,null,null,3]

{"sheet":"CONTRATOS","index":4,"n_rows":5,"n_cols":4,"rows_kept":5,"cut":false,"hidden":false,"merged":[]}
[]
[null,"CONTRATO","Empresas","CONTRATO"]
[null,"0-0","PROJETO 1","0-0"]
[null,"xxx","PROJETO2",8610]
[null,"aaa","PROJETO3",8397]

{"sheet":"PEDIDO","index":5,"n_rows":71,"n_cols":14,"rows_kept":71,"cut":false,"hidden":false,"merged":[[46,4,46,13],[20,7,20,13],[55,1,55,2],[63,1,66,2],[54,1,54,2],[56,1,56,2],[57,1,57,2],[54,6,54,7],[18,7,18,8],[20,1,20,2],[51,1,51,13],[52,1,52,13],[48,1,48,5],[50,1,50,5],[49,6,49,9],[49,10,49,13],[44,2,44,6],[44,8,44,9],[44,10,44,11],[44,12,44,13],[45,1,45,13],[42,2,42,6],[42,8,42,9],[42,10,42,11],[10,8,10,13],[12,12,12,13],[14,8,14,13],[14,6,14,7],[18,9,18,10],[18,11,18,13],[8,8,8,13],[8,6,8,7],[10,6,10,7],[12,10,12,11],[16,9,16,10],[16,11,16,12],[12,6,12,7],[12,8,12,9],[16,7,16,8],[67,1,67,13],[68,1,68,13],[69,1,69,6],[69,7,69,13],[71,7,72,13],[62,1,62,13],[59,1,59,13],[60,1,61,13],[70,7,70,13],[70,4,70,5],[70,1,70,2],[42,12,42,13],[43,2,43,6],[43,8,43,9],[43,10,43,11],[43,12,43,13],[40,2,40,6],[40,8,40,9],[40,10,40,11],[40,12,40,13],[41,2,41,6],[41,8,41,9],[41,10,41,11],[41,12,41,13],[38,2,38,6],[38,8,38,9],[38,10,38,11],[38,12,38,13],[39,2,39,6],[39,8,39,9],[39,10,39,11],[39,12,39,13],[36,2,36,6],[36,8,36,9],[36,10,36,11],[36,12,36,13],[37,2,37,6],[37,8,37,9],[37,10,37,11],[37,12,37,13],[34,2,34,6],[34,8,34,9],[34,10,34,11],[34,12,34,13],[35,2,35,6],[35,8,35,9],[35,10,35,11],[35,12,35,13],[32,2,32,6],[32,8,32,9],[32,10,32,11],[32,12,32,13],[33,2,33,6],[33,8,33,9],[33,10,33,11],[33,12,33,13],[31,2,31,6],[31,8,31,9],[31,10,31,11],[31,12,31,13],[28,2,28,6],[28,8,28,9],[28,10,28,11],[28,12,28,13],[29,2,29,6],[29,8,29,9],[29,10,29,11],[29,12,29,13],[24,8,24,9],[24,10,24,11],[24,12,24,13],[25,2,25,6],[25,8,25,9],[25,10,25,11],[25,12,25,13],[30,2,30,6],[30,8,30,9],[30,10,30,11],[30,12,30,13],[46,1,46,2],[16,1,16,2],[21,5,21,8],[18,1,18,2],[12,1,12,2],[14,1,14,2],[8,1,8,2],[10,1,10,2],[0,1,2,3],[0,4,2,13],[3,1,3,13],[4,1,4,2],[6,6,6,13],[6,1,6,3],[26,2,26,6],[26,8,26,9],[26,10,26,11],[26,12,26,13],[27,2,27,6],[27,8,27,9],[27,10,27,11],[27,12,27,13],[23,1,23,13],[24,2,24,6]]}
[null,{"$f":"A1+1","v":1},null,null,"PEDIDO DE COMPRA DE PRODUTOS"]
[]
[]
[null,{"$f":"TODAY()","v":"2016-06-14"}]
[null,"PEDIDO",null,2]
[]
[null,"DADOS DO FORNECEDOR",null,null,null,null,"Dados para Faturamento / Entrega"]
[]
[null,"Data:",null,"2016-06-30",null,null,"RAZÃO SOCIAL:",null,"SAMMA TRANSPORTES E SERVIÇOS LTDA"]
[]
[null,"FORNECEDOR",null,"BELTRANO",null,null,"CNPJ:",null,"06.876.157/0001-61"]
[]
[null,"CIDADE:",null,{"$f":"IFERROR(CONCATENATE(VLOOKUP(D11,REL_FOR!$C:$F,4,0),\"/\",VLOOKUP(PEDIDO!D11,REL_FOR!$C:$G,5,0)),\"\")","v":"CATALÃO/GO"},null,null,"INSC. EST.:",null,"10.391.627-0",null,"INC. MUN.:",null,106283]
[]
[null,"Contato:",null,"xxx",null,null,"ENDEREÇO:",null,"RUA PROF. MOZART ALVES Nº 186 BAIRRO JK"]
[]
[null,"Fone / Fax:",null,"xxxx",null,null,"CEP:","75.709-350",null,"CIDADE/UF:",null,"CATALÃO",null,"GO"]
[]
[null,"CNPJ:",null,{"$f":"IFERROR(VLOOKUP(D11,REL_FOR!$C:$E,3,0),\"\")","v":"11.222.333/0001/00"},null,null,"FONE/FAX:","(064) 3411-5500",null,"CONTATO:"]
[]
[null,"CONFORME ORÇAMENTO Nº",null,"10",null,null,"FORMA DE PGTO:",15]
[]
[]
[]
[null,null,"Descrição do Produto / Serviço",null,null,null,null,"Qtd.","Valor Unitário",null,"Valor Total",null,"Prazo de Entrega"]
[null,1,"xxxxxx",null,null,null,null,10,150.33000000000001,null,{"$f":"I26*H26","v":1503.3000000000002}]
[null,2,null,null,null,null,null,null,null,null,{"$f":"I27*H27","v":0}]
[null,3,null,null,null,null,null,null,null,null,0]
[null,4,null,null,null,null,null,null,null,null,0]
[null,5,null,null,null,null,null,null,null,null,0]
[null,6,null,null,null,null,null,null,null,null,0]
[null,7,null,null,null,null,null,null,null,null,0]
[null,8,null,null,null,null,null,null,null,null,0]
[null,9,null,null,null,null,null,null,null,null,0]
[null,10,null,null,null,null,null,null,null,null,0]
[null,11,null,null,null,null,null,null,null,null,0]
[null,12,null,null,null,null,null,null,null,null,0]
[null,13,null,null,null,null,null,null,null,null,0]
[null,14,null,null,null,null,null,null,null,null,0]
[null,15,null,null,null,null,null,null,null,null,0]
[null,16,null,null,null,null,null,null,null,null,0]
[null,17,null,null,null,null,null,null,null,null,0]
[null,18,null,null,null,null,null,null,null,null,0]
[null,19,null,null,null,null,null,null,null,null,0]
[null,20,null,null,null,null,null,null,null,null,0]
[]
[null,"TOTAL",null,{"$f":"SUM(K26:L45)","v":1503.3000000000002},{"$f":"IFERROR(Extenso_Valor(D47),\"\")","v":"um mil, quinhentos e três reais e trinta centavos"}]
[]
[]
[null,null,null,null,null,null,"Previsão de Entrega"]
[]
[]
[]
[]
[null,"TOMADOR",null,"PROJETO2"]
[null,"CONTRATO:",null,"10"]
[null,"CENTRO DE CUSTO:",null,1011101]
[null,"DESC. C. DE CUSTO:",null,{"$f":"IFERROR(VLOOKUP(D57,'C. CUSTO'!$F:$G,2,0),\"\")","v":"ADMINISTRAÇÃO DE PESSOAL"}]
[]
[null,"OBSERVAÇÕES"]
[null,"Caso algum item desse pedido sofra alteração, informe previamente a Nome da Empresa Ltda. para analisarmos a viabilidade da alteração e possamos aprová-la previamente."]
[]
[]
[null,"OBSERVAÇÃO",null,"xxx"]
[]
[]
[]
[]
[]
[null,"Responsável pela Solicitação",null,null,null,null,null,"Responsável pela Aprovação - Departamento"]
[null,"NOME DO SOLICITANTE:",null,"eliel","ÁREA:",null,"controladoria"]

{"sheet":"TABELA","index":6,"n_rows":2,"n_cols":14,"rows_kept":2,"cut":false,"hidden":false,"merged":[]}
["Pedido Nº","Data:","Fornecedor:","Endereço:","Contato:","Fone / Fax:","CNPJ:","ORÇAMENTO Nº","TOTAL DO PEDIDO","TOMADOR","CONTRATO:","CENTRO DE CUSTO:","DESC. C. DE CUSTO:","NOME DO SOLICITANTE:"]
[1,"2016-06-10","FULANO","CATALÃO/GO","XX","XXX","11.222.333/0001/00","XX",25200,null,"10",1011101,"ADMINISTRAÇÃO DE PESSOAL","eliel"]